Workbook

Sheet Calcul des impôts
A2: Steuerberechnung aufgrund des Ergebnisses vor Steuern (Stand per 1.1.2016) | AP2: Kurzanleitung: 1. Rechtsform und Steuertatus der Gesell- chaft angeben. 2. Ergänzen Sie nach Bedarf die Zahlen 1 bis 8 (Alle Zahlen müssen positiv erfasst werden). 3. Aufteilung nach Sitzgemeinde sowie Nebensteuerdomizilen in % angeben.
A3: —
B4: Kantonaler Steuerfuss 2016: | C4: 1 | W4: =SUM(L22+H29+M29+H34+M34+H39+M39+H45+M45+H51+M51+H57+M57+H63+M63+H69+M69) -> 0
AE6: Régimes fiscaux | AG6: 1 | AH6: Ordentliche Best.
B7: Rechtsform der Gesellschaft | G7: 1 | AG7: 2 | AH7: Holding
B8: Steuerstatuts der Gesellschaft | E8: Ordinaire | G8: 1 | AG8: 3 | AH8: Domizil. Gesel.
W9: =J22+F29+K29+F34+K34+F39+K39+F45+K45+F51+K51+F57+K57+F63+K63+F69+K69 -> 0 | AP9: Kurzbeschrieb: Das vorliegende Modul ermöglicht die Berechnung der Steuerrückstellung aufgrund des Reingewinnes vor Steuern. Es dient nur zur Berechnung der im Kanton Freiburg und für die DBST geschuldeten Steuern. Kleinere, unbedeutende Abweichungen können vorkommen. Die angegebene Rückstellung hat nur Informationszweck. Diese kann nicht als Beweismittel benutzt werden.
A10: 1. Total des steuerbaren Kapital (Kanton) | AE10: Genre de sociétés | AG10: 1 | AH10: AG, Genossensch., GmbH
A11: 2. Total des steuerbaren Gewinn (vor Verlustverr. und ohne a.o. Gewinne von Vereinen) | H11: (Betrag vor Steuern) | AG11: 2 | AH11: Vereine, Stiftungen, Andere JP
A12: 3. Steuerb, Gewinn Kanton (wenn Unterschied zu demjenigen unter 2) (z.B. CH Vorausanteil Domizilges.) | H12: (Betrag vor Steuern)
A13: 4. Für Vereine und Stiftungen: ausserordentliche Gewinne
A15: 5. Verlustverrechnung (gemäss Punk "H" der Steuererklärung) | V15: No d'ident. | W15: Taux des communes sélectionnés
A16: 6. Verrechenbare Verluste (Kanton) | H16: =IF(G22=1," ",IF(F12<>0," ",IF(F12=0,IF(F16<>0,"Il ne faut pas indiquer de pertes au canton"," ")))) ->  | W16: Communes | Z16: Paroisses
Z17: Catholiques | AC17: Réformées
A18: 7. Ermässigungen jeglicher Art, in % | G18: (Beteiligungsabzug, Steuerermässigung, …)
A19: 8. Sofern die Steuerpflicht nicht ein Jahr ausmacht; Anzahl der Tage | H19: =IF(G22=1," ",IF(F12-F16=F11-F15,"Ne pas indiquer de bénéfice au canton"," ")) -> 
E20: =IF(G22=1," ",IF(G77<>1,"Erreur dans la répartition du bénéfice"," ")) -> 
E21: =IF(G22=1," ",IF(G75<>1,"Erreur dans la répartition du capital"," ")) ->  | V21: No de réf. | W21: Capital | X21: Bénéfice | Y21: % cath. | Z21: Capital | AA21: Bénéfice | AB21: % réf. | AC21: Capital | AD21: Bénéfice | AE21: Capital réparti | AF21: Cote com. cap. | AH21: Cote par. cap. | AI21: Cote com. bén. | AJ21: Cote par. cath. bén. | AK21: Bénéfice com. réparti | AL21: Bén. cath. rép. | AM21: Bén. réf. réparti | AO21: bénéf réparti
B22: Sitzgemeinde | G22: 1 | I22: In % | K22: In % | T22: Commune de domicile | V22: =IF(G22=1,0,G22) -> 0 | W22: =IF(V22=0,0,VLOOKUP(V22,'Taux 2015-324- communaux'!$A$14:$H$165,4)) -> 0 | X22: =IF(V22=0,0,VLOOKUP(V22,'Taux 2015-324- communaux'!$A$14:$H$165,4)) -> 0 | Y22: =IF(V22=0,0,VLOOKUP(V22,'Part des paroisses'!$A$2:$E$169,4)) -> 0 | Z22: =IF(V22=0,0,VLOOKUP(V22,'Taux 2015-324- communaux'!$A$14:$H$165,6)) -> 0 | AA22: =IF(V22=0,0,VLOOKUP(V22,'Taux 2015-324- communaux'!$A$14:$H$165,5)) -> 0 | AB22: =IF(V22=0,0,VLOOKUP(V22,'Part des paroisses'!$A$2:$E$169,5)) -> 0 | AC22: =IF(V22=0,0,VLOOKUP(V22,'Taux 2015-324- communaux'!$A$14:$H$165,8)) -> 0 | AD22: =IF(V22=0,0,VLOOKUP(V22,'Taux 2015-324- communaux'!$A$14:$H$165,7)) -> 0 | AE22: =J22 -> 0 | AF22: =ROUND(($X$106*AE22*W22)/100,0) -> 0 | AH22: =ROUND(((($X$106*AE22)*(Y22*Z22)/10000)+(($X$106*AE22)*(AB22*AC22))/10000),1) -> 0 | AI22: =ROUND(($X$124*AO22*W22)/100,0) -> 0 | AJ22: =ROUND(((($X$124*AO22)*(Y22*AA22)/10000)+(($X$124*AO22)*(AB22*AD22))/10000),1) -> 0 | AK22: =X22*AE22/100 -> 0 | AL22: =Y22*AA22*AE22/10000 -> 0 | AM22: =AB22*AD22*AE22/10000 -> 0 | AO22: =L22 -> 0
I23: Kapital | J23: =F10*J22 -> 0 | K23: Gewinn | L23: =IF(($F$12-$F$16)>0,($F$12-$F$16)*L22,IF($F$12=0,$F$11*L22,0)) -> 0 | T23: Communes de répart. | V23: =IF(G27=1,0,G27) -> 0 | W23: =IF(V23=0,0,VLOOKUP(V23,'Taux 2015-324- communaux'!$A$14:$H$165,4)) -> 0 | X23: =IF(V23=0,0,VLOOKUP(V23,'Taux 2015-324- communaux'!$A$14:$H$165,4)) -> 0 | Y23: =IF(V23=0,0,VLOOKUP(V23,'Part des paroisses'!$A$2:$E$169,4)) -> 0 | Z23: =IF(V23=0,0,VLOOKUP(V23,'Taux 2015-324- communaux'!$A$14:$H$165,6)) -> 0 | AA23: =IF(V23=0,0,VLOOKUP(V23,'Taux 2015-324- communaux'!$A$14:$H$165,5)) -> 0 | AB23: =IF(V23=0,0,VLOOKUP(V23,'Part des paroisses'!$A$2:$E$169,5)) -> 0 | AC23: =IF(V23=0,0,VLOOKUP(V23,'Taux 2015-324- communaux'!$A$14:$H$165,8)) -> 0 | AD23: =IF(V23=0,0,VLOOKUP(V23,'Taux 2015-324- communaux'!$A$14:$H$165,7)) -> 0 | AE23: =F29 -> 0 | AF23: =ROUND(($X$106*AE23*W23)/100,0) -> 0 | AH23: =ROUND(((($X$106*AE23)*(Y23*Z23)/10000)+(($X$106*AE23)*(AB23*AC23))/10000),1) -> 0 | AI23: =ROUND(($X$124*AO23*W23)/100,0) -> 0 | AJ23: =ROUND(((($X$124*AO23)*(Y23*AA23)/10000)+(($X$124*AO23)*(AB23*AD23))/10000),1) -> 0 | AK23: =X23*AE23/100 -> 0 | AL23: =Y23*AA23*AE23/10000 -> 0 | AM23: =AB23*AD23*AE23/10000 -> 0 | AO23: =H29 -> 0
V24: =IF(L27=1,0,L27) -> 0 | W24: =IF(V24=0,0,VLOOKUP(V24,'Taux 2015-324- communaux'!$A$14:$H$165,4)) -> 0 | X24: =IF(V24=0,0,VLOOKUP(V24,'Taux 2015-324- communaux'!$A$14:$H$165,4)) -> 0 | Y24: =IF(V24=0,0,VLOOKUP(V24,'Part des paroisses'!$A$2:$E$169,4)) -> 0 | Z24: =IF(V24=0,0,VLOOKUP(V24,'Taux 2015-324- communaux'!$A$14:$H$165,6)) -> 0 | AA24: =IF(V24=0,0,VLOOKUP(V24,'Taux 2015-324- communaux'!$A$14:$H$165,5)) -> 0 | AB24: =IF(V24=0,0,VLOOKUP(V24,'Part des paroisses'!$A$2:$E$169,5)) -> 0 | AC24: =IF(V24=0,0,VLOOKUP(V24,'Taux 2015-324- communaux'!$A$14:$H$165,8)) -> 0 | AD24: =IF(V24=0,0,VLOOKUP(V24,'Taux 2015-324- communaux'!$A$14:$H$165,7)) -> 0 | AE24: =K29 -> 0 | AF24: 0 | AH24: 0 | AI24: =ROUND(($X$124*AO24*W24)/100,0) -> 0 | AJ24: 0 | AK24: 0 | AL24: 0 | AM24: 0 | AO24: =M29 -> 0
V25: =IF(G32=1,0,G32) -> 0 | W25: =IF(V25=0,0,VLOOKUP(V25,'Taux 2015-324- communaux'!$A$14:$H$165,4)) -> 0 | X25: =IF(V25=0,0,VLOOKUP(V25,'Taux 2015-324- communaux'!$A$14:$H$165,4)) -> 0 | Y25: =IF(V25=0,0,VLOOKUP(V25,'Part des paroisses'!$A$2:$E$169,4)) -> 0 | Z25: =IF(V25=0,0,VLOOKUP(V25,'Taux 2015-324- communaux'!$A$14:$H$165,6)) -> 0 | AA25: =IF(V25=0,0,VLOOKUP(V25,'Taux 2015-324- communaux'!$A$14:$H$165,5)) -> 0 | AB25: =IF(V25=0,0,VLOOKUP(V25,'Part des paroisses'!$A$2:$E$169,5)) -> 0 | AC25: =IF(V25=0,0,VLOOKUP(V25,'Taux 2015-324- communaux'!$A$14:$H$165,8)) -> 0 | AD25: =IF(V25=0,0,VLOOKUP(V25,'Taux 2015-324- communaux'!$A$14:$H$165,7)) -> 0 | AE25: =F34 -> 0 | AF25: 0 | AH25: 0 | AI25: =ROUND(($X$124*AO25*W25)/100,0) -> 0 | AJ25: 0 | AK25: 0 | AL25: 0 | AM25: 0 | AO25: =H34 -> 0
B26: Aufteilung nach Gemeinden | V26: =IF(L32=1,0,L32) -> 0 | W26: =IF(V26=0,0,VLOOKUP(V26,'Taux 2015-324- communaux'!$A$14:$H$165,4)) -> 0 | X26: =IF(V26=0,0,VLOOKUP(V26,'Taux 2015-324- communaux'!$A$14:$H$165,4)) -> 0 | Y26: =IF(V26=0,0,VLOOKUP(V26,'Part des paroisses'!$A$2:$E$169,4)) -> 0 | Z26: =IF(V26=0,0,VLOOKUP(V26,'Taux 2015-324- communaux'!$A$14:$H$165,6)) -> 0 | AA26: =IF(V26=0,0,VLOOKUP(V26,'Taux 2015-324- communaux'!$A$14:$H$165,5)) -> 0 | AB26: =IF(V26=0,0,VLOOKUP(V26,'Part des paroisses'!$A$2:$E$169,5)) -> 0 | AC26: =IF(V26=0,0,VLOOKUP(V26,'Taux 2015-324- communaux'!$A$14:$H$165,8)) -> 0 | AD26: =IF(V26=0,0,VLOOKUP(V26,'Taux 2015-324- communaux'!$A$14:$H$165,7)) -> 0 | AE26: =K34 -> 0 | AF26: 0 | AH26: 0 | AI26: 0 | AJ26: 0 | AK26: 0 | AL26: 0 | AM26: 0 | AO26: =M34 -> 0
G27: 1 | L27: 1 | V27: =IF(G37=1,0,G37) -> 0 | W27: =IF(V27=0,0,VLOOKUP(V27,'Taux 2015-324- communaux'!$A$14:$H$165,4)) -> 0 | X27: =IF(V27=0,0,VLOOKUP(V27,'Taux 2015-324- communaux'!$A$14:$H$165,4)) -> 0 | Y27: =IF(V27=0,0,VLOOKUP(V27,'Part des paroisses'!$A$2:$E$169,4)) -> 0 | Z27: =IF(V27=0,0,VLOOKUP(V27,'Taux 2015-324- communaux'!$A$14:$H$165,6)) -> 0 | AA27: =IF(V27=0,0,VLOOKUP(V27,'Taux 2015-324- communaux'!$A$14:$H$165,5)) -> 0 | AB27: =IF(V27=0,0,VLOOKUP(V27,'Part des paroisses'!$A$2:$E$169,5)) -> 0 | AC27: =IF(V27=0,0,VLOOKUP(V27,'Taux 2015-324- communaux'!$A$14:$H$165,8)) -> 0 | AD27: =IF(V27=0,0,VLOOKUP(V27,'Taux 2015-324- communaux'!$A$14:$H$165,7)) -> 0 | AE27: =F39 -> 0 | AF27: 0 | AH27: 0 | AI27: 0 | AJ27: 0 | AK27: 0 | AL27: 0 | AM27: 0 | AO27: =H39 -> 0
A28: Berechnung Steuerbetrag mit Berücksichtigung der Steuerbelastung | V28: =IF(L37=1,0,L37) -> 0 | W28: =IF(V28=0,0,VLOOKUP(V28,'Taux 2015-324- communaux'!$A$14:$H$165,4)) -> 0 | X28: =IF(V28=0,0,VLOOKUP(V28,'Taux 2015-324- communaux'!$A$14:$H$165,4)) -> 0 | Y28: =IF(V28=0,0,VLOOKUP(V28,'Part des paroisses'!$A$2:$E$169,4)) -> 0 | Z28: =IF(V28=0,0,VLOOKUP(V28,'Taux 2015-324- communaux'!$A$14:$H$165,6)) -> 0 | AA28: =IF(V28=0,0,VLOOKUP(V28,'Taux 2015-324- communaux'!$A$14:$H$165,5)) -> 0 | AB28: =IF(V28=0,0,VLOOKUP(V28,'Part des paroisses'!$A$2:$E$169,5)) -> 0 | AC28: =IF(V28=0,0,VLOOKUP(V28,'Taux 2015-324- communaux'!$A$14:$H$165,8)) -> 0 | AD28: =IF(V28=0,0,VLOOKUP(V28,'Taux 2015-324- communaux'!$A$14:$H$165,7)) -> 0 | AE28: =K39 -> 0 | AF28: 0 | AH28: 0 | AI28: 0 | AJ28: 0 | AK28: 0 | AL28: 0 | AM28: 0 | AO28: =M39 -> 0
E29: In % | G29: In % | J29: In % | L29: In % | V29: =IF(G43=1,0,G43) -> 0 | W29: =IF(V29=0,0,VLOOKUP(V29,'Taux 2015-324- communaux'!$A$14:$H$165,4)) -> 0 | X29: =IF(V29=0,0,VLOOKUP(V29,'Taux 2015-324- communaux'!$A$14:$H$165,4)) -> 0 | Y29: =IF(V29=0,0,VLOOKUP(V29,'Part des paroisses'!$A$2:$E$169,4)) -> 0 | Z29: =IF(V29=0,0,VLOOKUP(V29,'Taux 2015-324- communaux'!$A$14:$H$165,6)) -> 0 | AA29: =IF(V29=0,0,VLOOKUP(V29,'Taux 2015-324- communaux'!$A$14:$H$165,5)) -> 0 | AB29: =IF(V29=0,0,VLOOKUP(V29,'Part des paroisses'!$A$2:$E$169,5)) -> 0 | AC29: =IF(V29=0,0,VLOOKUP(V29,'Taux 2015-324- communaux'!$A$14:$H$165,8)) -> 0 | AD29: =IF(V29=0,0,VLOOKUP(V29,'Taux 2015-324- communaux'!$A$14:$H$165,7)) -> 0 | AE29: =F45 -> 0 | AF29: 0 | AH29: 0 | AI29: 0 | AJ29: 0 | AK29: 0 | AL29: 0 | AM29: 0 | AO29: =H45 -> 0
B30: Kantonsteuer auf Kapital (inkl. Steuerfuss) | C30: =IF(G22=1,0,ROUND((X106*W61),1)) -> 0 | E30: Kapital | F30: =F10*F29 -> 0 | G30: Gewinn | H30: =IF(($F$12-$F$16)>0,($F$12-$F$16)*H29,IF($F$12=0,$F$11*H29,0)) -> 0 | J30: Kapital | K30: =F11*K29 -> 0 | L30: Gewinn | M30: =IF(($F$12-$F$16)>0,($F$12-$F$16)*M29,IF($F$12=0,$F$11*M29,0)) -> 0 | V30: =IF(L43=1,0,L43) -> 0 | W30: =IF(V30=0,0,VLOOKUP(V30,'Taux 2015-324- communaux'!$A$14:$H$165,4)) -> 0 | X30: =IF(V30=0,0,VLOOKUP(V30,'Taux 2015-324- communaux'!$A$14:$H$165,4)) -> 0 | Y30: =IF(V30=0,0,VLOOKUP(V30,'Part des paroisses'!$A$2:$E$169,4)) -> 0 | Z30: =IF(V30=0,0,VLOOKUP(V30,'Taux 2015-324- communaux'!$A$14:$H$165,6)) -> 0 | AA30: =IF(V30=0,0,VLOOKUP(V30,'Taux 2015-324- communaux'!$A$14:$H$165,5)) -> 0 | AB30: =IF(V30=0,0,VLOOKUP(V30,'Part des paroisses'!$A$2:$E$169,5)) -> 0 | AC30: =IF(V30=0,0,VLOOKUP(V30,'Taux 2015-324- communaux'!$A$14:$H$165,8)) -> 0 | AD30: =IF(V30=0,0,VLOOKUP(V30,'Taux 2015-324- communaux'!$A$14:$H$165,7)) -> 0 | AE30: =K45 -> 0 | AF30: 0 | AH30: 0 | AI30: 0 | AJ30: 0 | AK30: 0 | AL30: 0 | AM30: 0 | AO30: =M45 -> 0
B31: Gemeinde- und Pfarreisteuern auf Kapital | C31: =IF(G22=1,0,X107+X108) -> 0 | V31: =IF(G49=1,0,G49) -> 0 | W31: =IF(V31=0,0,VLOOKUP(V31,'Taux 2015-324- communaux'!$A$14:$H$165,4)) -> 0 | X31: =IF(V31=0,0,VLOOKUP(V31,'Taux 2015-324- communaux'!$A$14:$H$165,4)) -> 0 | Y31: =IF(V31=0,0,VLOOKUP(V31,'Part des paroisses'!$A$2:$E$169,4)) -> 0 | Z31: =IF(V31=0,0,VLOOKUP(V31,'Taux 2015-324- communaux'!$A$14:$H$165,6)) -> 0 | AA31: =IF(V31=0,0,VLOOKUP(V31,'Taux 2015-324- communaux'!$A$14:$H$165,5)) -> 0 | AB31: =IF(V31=0,0,VLOOKUP(V31,'Part des paroisses'!$A$2:$E$169,5)) -> 0 | AC31: =IF(V31=0,0,VLOOKUP(V31,'Taux 2015-324- communaux'!$A$14:$H$165,8)) -> 0 | AD31: =IF(V31=0,0,VLOOKUP(V31,'Taux 2015-324- communaux'!$A$14:$H$165,7)) -> 0 | AE31: =F51 -> 0 | AF31: 0 | AH31: 0 | AI31: 0 | AJ31: 0 | AK31: 0 | AL31: 0 | AM31: 0 | AO31: =H51 -> 0
G32: 1 | L32: 1 | V32: =IF(L49=1,0,L49) -> 0 | W32: =IF(V32=0,0,VLOOKUP(V32,'Taux 2015-324- communaux'!$A$14:$H$165,4)) -> 0 | X32: =IF(V32=0,0,VLOOKUP(V32,'Taux 2015-324- communaux'!$A$14:$H$165,4)) -> 0 | Y32: =IF(V32=0,0,VLOOKUP(V32,'Part des paroisses'!$A$2:$E$169,4)) -> 0 | Z32: =IF(V32=0,0,VLOOKUP(V32,'Taux 2015-324- communaux'!$A$14:$H$165,6)) -> 0 | AA32: =IF(V32=0,0,VLOOKUP(V32,'Taux 2015-324- communaux'!$A$14:$H$165,5)) -> 0 | AB32: =IF(V32=0,0,VLOOKUP(V32,'Part des paroisses'!$A$2:$E$169,5)) -> 0 | AC32: =IF(V32=0,0,VLOOKUP(V32,'Taux 2015-324- communaux'!$A$14:$H$165,8)) -> 0 | AD32: =IF(V32=0,0,VLOOKUP(V32,'Taux 2015-324- communaux'!$A$14:$H$165,7)) -> 0 | AE32: =K51 -> 0 | AF32: 0 | AH32: 0 | AI32: 0 | AJ32: 0 | AK32: 0 | AL32: 0 | AM32: 0 | AO32: =M51 -> 0
A33: Total der Kapitalsteuern | C33: =SUM(C30:C32) -> 0 | V33: =IF(G55=1,0,G55) -> 0 | W33: =IF(V33=0,0,VLOOKUP(V33,'Taux 2015-324- communaux'!$A$14:$H$165,4)) -> 0 | X33: =IF(V33=0,0,VLOOKUP(V33,'Taux 2015-324- communaux'!$A$14:$H$165,4)) -> 0 | Y33: =IF(V33=0,0,VLOOKUP(V33,'Part des paroisses'!$A$2:$E$169,4)) -> 0 | Z33: =IF(V33=0,0,VLOOKUP(V33,'Taux 2015-324- communaux'!$A$14:$H$165,6)) -> 0 | AA33: =IF(V33=0,0,VLOOKUP(V33,'Taux 2015-324- communaux'!$A$14:$H$165,5)) -> 0 | AB33: =IF(V33=0,0,VLOOKUP(V33,'Part des paroisses'!$A$2:$E$169,5)) -> 0 | AC33: =IF(V33=0,0,VLOOKUP(V33,'Taux 2015-324- communaux'!$A$14:$H$165,8)) -> 0 | AD33: =IF(V33=0,0,VLOOKUP(V33,'Taux 2015-324- communaux'!$A$14:$H$165,7)) -> 0 | AE33: =F57 -> 0 | AF33: 0 | AH33: 0 | AI33: 0 | AJ33: 0 | AK33: 0 | AL33: 0 | AM33: 0 | AO33: =H57 -> 0
E34: In % | G34: In % | J34: In % | L34: In % | V34: =IF(L55=1,0,L55) -> 0 | W34: =IF(V34=0,0,VLOOKUP(V34,'Taux 2015-324- communaux'!$A$14:$H$165,4)) -> 0 | X34: =IF(V34=0,0,VLOOKUP(V34,'Taux 2015-324- communaux'!$A$14:$H$165,4)) -> 0 | Y34: =IF(V34=0,0,VLOOKUP(V34,'Part des paroisses'!$A$2:$E$169,4)) -> 0 | Z34: =IF(V34=0,0,VLOOKUP(V34,'Taux 2015-324- communaux'!$A$14:$H$165,6)) -> 0 | AA34: =IF(V34=0,0,VLOOKUP(V34,'Taux 2015-324- communaux'!$A$14:$H$165,5)) -> 0 | AB34: =IF(V34=0,0,VLOOKUP(V34,'Part des paroisses'!$A$2:$E$169,5)) -> 0 | AC34: =IF(V34=0,0,VLOOKUP(V34,'Taux 2015-324- communaux'!$A$14:$H$165,8)) -> 0 | AD34: =IF(V34=0,0,VLOOKUP(V34,'Taux 2015-324- communaux'!$A$14:$H$165,7)) -> 0 | AE34: =K57 -> 0 | AF34: 0 | AH34: 0 | AI34: 0 | AJ34: 0 | AK34: 0 | AL34: 0 | AM34: 0 | AO34: =M57 -> 0
B35: Kantonssteuer auf Gewinn1 (inkl. Steuerfuss) | C35: =IF(G22=1,0,ROUND(X125*W62,1)) -> 0 | E35: Kapital | F35: =F10*F34 -> 0 | G35: Gewinn | H35: =IF(($F$12-$F$16)>0,($F$12-$F$16)*H34,IF($F$12=0,$F$11*H34,0)) -> 0 | J35: Kapital | K35: =F10*K34 -> 0 | L35: Gewinn | M35: =IF(($F$12-$F$16)>0,($F$12-$F$16)*M34,IF($F$12=0,$F$11*M34,0)) -> 0 | V35: =IF(G61=1,0,G61) -> 0 | W35: =IF(V35=0,0,VLOOKUP(V35,'Taux 2015-324- communaux'!$A$14:$H$165,4)) -> 0 | X35: =IF(V35=0,0,VLOOKUP(V35,'Taux 2015-324- communaux'!$A$14:$H$165,4)) -> 0 | Y35: =IF(V35=0,0,VLOOKUP(V35,'Part des paroisses'!$A$2:$E$169,4)) -> 0 | Z35: =IF(V35=0,0,VLOOKUP(V35,'Taux 2015-324- communaux'!$A$14:$H$165,6)) -> 0 | AA35: =IF(V35=0,0,VLOOKUP(V35,'Taux 2015-324- communaux'!$A$14:$H$165,5)) -> 0 | AB35: =IF(V35=0,0,VLOOKUP(V35,'Part des paroisses'!$A$2:$E$169,5)) -> 0 | AC35: =IF(V35=0,0,VLOOKUP(V35,'Taux 2015-324- communaux'!$A$14:$H$165,8)) -> 0 | AD35: =IF(V35=0,0,VLOOKUP(V35,'Taux 2015-324- communaux'!$A$14:$H$165,7)) -> 0 | AE35: =F63 -> 0 | AF35: 0 | AH35: 0 | AI35: 0 | AJ35: 0 | AK35: 0 | AL35: 0 | AM35: 0 | AO35: =H63 -> 0
B36: Gemeinde- und Pfarreisteuern auf Gewinne1 | C36: =IF(G22=1,0,AI39+AJ39) -> 0 | V36: =IF(L61=1,0,L61) -> 0 | W36: =IF(V36=0,0,VLOOKUP(V36,'Taux 2015-324- communaux'!$A$14:$H$165,4)) -> 0 | X36: =IF(V36=0,0,VLOOKUP(V36,'Taux 2015-324- communaux'!$A$14:$H$165,4)) -> 0 | Y36: =IF(V36=0,0,VLOOKUP(V36,'Part des paroisses'!$A$2:$E$169,4)) -> 0 | Z36: =IF(V36=0,0,VLOOKUP(V36,'Taux 2015-324- communaux'!$A$14:$H$165,6)) -> 0 | AA36: =IF(V36=0,0,VLOOKUP(V36,'Taux 2015-324- communaux'!$A$14:$H$165,5)) -> 0 | AB36: =IF(V36=0,0,VLOOKUP(V36,'Part des paroisses'!$A$2:$E$169,5)) -> 0 | AC36: =IF(V36=0,0,VLOOKUP(V36,'Taux 2015-324- communaux'!$A$14:$H$165,8)) -> 0 | AD36: =IF(V36=0,0,VLOOKUP(V36,'Taux 2015-324- communaux'!$A$14:$H$165,7)) -> 0 | AE36: =K63 -> 0 | AF36: 0 | AH36: 0 | AI36: 0 | AJ36: 0 | AK36: 0 | AL36: 0 | AM36: 0 | AO36: =M63 -> 0
G37: 1 | L37: 1 | V37: =IF(G67=1,0,G67) -> 0 | W37: =IF(V37=0,0,VLOOKUP(V37,'Taux 2015-324- communaux'!$A$14:$H$165,4)) -> 0 | X37: =IF(V37=0,0,VLOOKUP(V37,'Taux 2015-324- communaux'!$A$14:$H$165,4)) -> 0 | Y37: =IF(V37=0,0,VLOOKUP(V37,'Part des paroisses'!$A$2:$E$169,4)) -> 0 | Z37: =IF(V37=0,0,VLOOKUP(V37,'Taux 2015-324- communaux'!$A$14:$H$165,6)) -> 0 | AA37: =IF(V37=0,0,VLOOKUP(V37,'Taux 2015-324- communaux'!$A$14:$H$165,5)) -> 0 | AB37: =IF(V37=0,0,VLOOKUP(V37,'Part des paroisses'!$A$2:$E$169,5)) -> 0 | AC37: =IF(V37=0,0,VLOOKUP(V37,'Taux 2015-324- communaux'!$A$14:$H$165,8)) -> 0 | AD37: =IF(V37=0,0,VLOOKUP(V37,'Taux 2015-324- communaux'!$A$14:$H$165,7)) -> 0 | AE37: =F69 -> 0 | AF37: 0 | AH37: 0 | AI37: 0 | AJ37: 0 | AK37: 0 | AL37: 0 | AM37: 0 | AO37: =H69 -> 0
A38: Total der Kantons-, Gemeinde- und Pfarreisteuern auf Gewinn | C38: =SUM(C35:C37) -> 0 | V38: =IF(L67=1,0,L67) -> 0 | W38: =IF(V38=0,0,VLOOKUP(V38,'Taux 2015-324- communaux'!$A$14:$H$165,4)) -> 0 | X38: =IF(V38=0,0,VLOOKUP(V38,'Taux 2015-324- communaux'!$A$14:$H$165,4)) -> 0 | Y38: =IF(V38=0,0,VLOOKUP(V38,'Part des paroisses'!$A$2:$E$169,4)) -> 0 | Z38: =IF(V38=0,0,VLOOKUP(V38,'Taux 2015-324- communaux'!$A$14:$H$165,6)) -> 0 | AA38: =IF(V38=0,0,VLOOKUP(V38,'Taux 2015-324- communaux'!$A$14:$H$165,5)) -> 0 | AB38: =IF(V38=0,0,VLOOKUP(V38,'Part des paroisses'!$A$2:$E$169,5)) -> 0 | AC38: =IF(V38=0,0,VLOOKUP(V38,'Taux 2015-324- communaux'!$A$14:$H$165,8)) -> 0 | AD38: =IF(V38=0,0,VLOOKUP(V38,'Taux 2015-324- communaux'!$A$14:$H$165,7)) -> 0 | AE38: =K69 -> 0 | AF38: 0 | AH38: 0 | AI38: 0 | AJ38: 0 | AK38: 0 | AL38: 0 | AM38: 0 | AO38: =M69 -> 0
A39: Direkte Bundessteuer | C39: =IF(G22=1,0,X135) -> 0 | E39: In % | G39: In % | J39: In % | L39: In % | AE39: =SUM(AE22:AE38) -> 0 | AF39: =SUM(AF22:AF38) -> 0 | AH39: =SUM(AH22:AH38) -> 0 | AI39: 0 | AJ39: 0 | AK39: 0 | AL39: 0 | AM39: 0 | AN39: =SUM(AK39:AM39) -> 0
B40: Berechnung voraussichtliche Steuern | C40: =C33+C38+C39 -> 0 | E40: Kapital | F40: =F10*F39 -> 0 | G40: Gewinn | H40: =IF(($F$12-$F$16)>0,($F$12-$F$16)*H39,IF($F$12=0,$F$11*H39,0)) -> 0 | J40: Kapital | K40: =F10*K39 -> 0 | L40: Gewinn | M40: =IF(($F$12-$F$16)>0,($F$12-$F$16)*M39,IF($F$12=0,$F$11*M39,0)) -> 0
A41: Zu bildende Rückstellung2 | C41: =IF(G22=1," ",ROUND((C40+50)/100,0)*100) -> 
A42: 1 Die Steuern auf einem möglichen a. o. Gewinn sind mitberücksichtigt.
A43: 2 Als Aufwand verbuchte Akotozahlungen müssen abgezogen werden. | G43: 1 | L43: 1
E45: In % | G45: In % | J45: In % | L45: In %
E46: Kapital | F46: =F10*F45 -> 0 | G46: Gewinn | H46: =IF(($F$12-$F$16)>0,($F$12-$F$16)*H45,IF($F$12=0,$F$11*H45,0)) -> 0 | J46: Kapital | K46: =F10*K45 -> 0 | L46: Gewinn | M46: =IF(($F$12-$F$16)>0,($F$12-$F$16)*M45,IF($F$12=0,$F$11*M45,0)) -> 0
G49: 1 | L49: 1
E51: In % | G51: In % | J51: In % | L51: In %
E52: Kapital | F52: =F10*F51 -> 0 | G52: Gewinn | H52: =IF(($F$12-$F$16)>0,($F$12-$F$16)*H51,IF($F$12=0,$F$11*H51,0)) -> 0 | J52: Kapital | K52: =F10*K51 -> 0 | L52: Gewinn | M52: =IF(($F$12-$F$16)>0,($F$12-$F$16)*M51,IF($F$12=0,$F$11*M51,0)) -> 0
G55: 1 | L55: 1
E57: In % | G57: In % | J57: In % | L57: In %
E58: Kapital | F58: =F10*F57 -> 0 | G58: Gewinn | H58: =IF(($F$12-$F$16)>0,($F$12-$F$16)*H57,IF($F$12=0,$F$11*H57,0)) -> 0 | J58: Kapital | K58: =F10*K57 -> 0 | L58: Gewinn | M58: =IF(($F$12-$F$16)>0,($F$12-$F$16)*M57,IF($F$12=0,$F$11*M57,0)) -> 0
G61: 1 | L61: 1 | T61: Coefficient cantonal sur le capital | W61: =C4 -> 1
T62: Coefficient cantonal sur le bénéfice | W62: =C4 -> 1
E63: In % | G63: In % | J63: In % | L63: In %
E64: Kapital | F64: =F10*F63 -> 0 | G64: Gewinn | H64: =IF(($F$12-$F$16)>0,($F$12-$F$16)*H63,IF($F$12=0,$F$11*H63,0)) -> 0 | J64: Kapital | K64: =F10*K63 -> 0 | L64: Gewinn | M64: =IF(($F$12-$F$16)>0,($F$12-$F$16)*M63,IF($F$12=0,$F$11*M63,0)) -> 0
G67: 1 | L67: 1 | T67: 1 | X67: 3 | AD67: 6
U68: PM | Z68: PM | AE68: APM
E69: In % | G69: In % | J69: In % | L69: In % | U69: Régime ordinaire | Z69: Holding et domiciliées | AE69: Régime ordinaire | AI69: Fondations domiciliées
E70: Kapital | F70: =F10*F69 -> 0 | G70: Gewinn | H70: =IF(($F$12-$F$16)>0,($F$12-$F$16)*H69,IF($F$12=0,$F$11*H69,0)) -> 0 | J70: Kapital | K70: =F10*K69 -> 0 | L70: Gewinn | M70: =IF(($F$12-$F$16)>0,($F$12-$F$16)*M69,IF($F$12=0,$F$11*M69,0)) -> 0 | T70: Barèmes | U70: Capital | V70: Bénéfice | X70: Barèmes | Z70: Capital | AA70: Bénéfice | AD70: Barèmes | AE70: Capital | AF70: Bénéfice | AH70: Barèmes | AI70: Capital | AJ70: Bénéfice
T73: IFD | U73: 0 | W73: 0.085 | X73: IFD | Z73: 0 | AC73: 0.085 | AD73: IFD | AE73: 0 | AH73: IFD | AI73: 0 | AJ73: 0.0425
A75: Contrôle des pourcentages affectés aux communes pour le capital imposable | G75: =IF(W9<>1,"ERREUR Veuillez corriger les parts réparties",W4) -> ERREUR Veuillez corriger les parts réparties | H75: Différence | I75: =-1+W9 -> -1 | T75: IC | U75: 0.0016 | X75: IC | Z75: Minimum | AC75: 170 | AD75: IC | AE75: 0.00255 | AH75: IC | AI75: Minimum
Z76: 499999999 | AC76: 0.00017 | AD76: Jusqu'à 100'000 | AE76: 0 | AI76: 499999999
A77: Contrôle des pourcentages affectés aux communes pour le bénéfice avant impôt | G77: =IF((L22+H29+M29+H34+M34+H39+M39+H45+M45+H51+M51+H57+M57+H63+M63+H69+M69)<>1,"ERREUR Veuillez corriger les parts réparties",L22+H29+M29+H34+M34+H39+M39+H45+M45+H51+M51+H57+M57+H63+M63+H69+M69) -> ERREUR Veuillez corriger les parts réparties | H77: Différence : | I77: =-1+W4 -> -1 | Z77: 500000000 | AC77: 8e-05 | AI77: 500000000
V80: 1 à 25000 | W80: 0.042 | AA80: 1 à 25000 | AC80: 0.042 | AE80: 1 à 25000 | AF80: 0.042 | AJ80: 1 à 25000
V81: 25001 à 50000 | W81: 0.128 | AA81: 25001 à 50000 | AC81: 0.128 | AE81: 25001 à 50000 | AF81: 0.128 | AJ81: 25001 à 50000
V82: Plus de 50000 | W82: 0.085 | AA82: Plus de 50000 | AC82: 0.085 | AE82: Plus de 50000 | AF82: 0.085 | AJ82: Plus de 50000
AE83: Bénéfice extr. | AF83: 0.01
AE84: Minimum | AF84: 4999
T94: 1. Détermination du capital imposable pro rata temporis | AC94: =IF(F19=0,F10,(F10*F19)/365) -> 0 | AH94: Genre de sociétés | AJ94: =G7 -> 1
T95: 2. Détermination du bénéfice déterminant pour le taux : | AB95: IFD | AC95: =IF(F19=0,F11+AC96,((F11+AC96)/F19)*365)-F15 -> 0 | AD95: Canton | AE95: =IF(AC95+AD98=0,0,IF(AD98<>0,IF(F19=0,AD98,IF(AD98=AC97,AC95,((F12/F19)*365)-F16)))) -> 0 | AF95: =IF(AD98=0,1,IF(AC97=0,1,AD98/AC97)) -> 1 | AH95: Régime fiscal | AJ95: =G8 -> 1
U96: Bénéfice extraordinaire | AC96: =F13 -> 0
U97: Bénéfice imposable IFD | AC97: =IF(F11=0,0,F11-F15+F13) -> 0
U98: Bénéfice imposable au canton | AD98: =IF(F12<>0,F12-F16,AC97-AC96) -> 0 | AE98: =MAX(AC95,AD98) -> 0
X99: PM | Z99: APM
T100: 3. Détermination du régime fiscal et du barème | X100: =IF(AJ94>1,0,IF(AJ94=1,IF(AJ95=1,1,IF(AJ94=1,IF(AJ95=2,2,IF(AJ94=1,IF(AJ95=3,2,0))))))) -> 1 | Z100: =IF(AJ94=1,0,IF(AJ94=2,IF(AJ95=1,3,IF(AJ94=2,IF(AJ95=2,6,IF(AJ94=2,IF(AJ95=3,6,0))))))) -> 0 | AC100: =IF(Z100=3,0,IF(Z100=6,IF(AC94<850000,"min",IF(Z100=6,IF(AC94>=850000,AC76),0)))) -> FALSE
T101: 4. Capital plus grand que 500'000'000 | X101: =IF(AJ94=2,0,IF(AJ95=1,0,-MAX(0,AC94-Z77))) -> 0 | Z101: =IF(AJ94<>2,0,IF(AJ94=2,IF(AJ95=1,0,-MAX(0,(AC94-AI77))))) -> 0
T102: 5. Recherche des taux | X102: Capital | Z102: Capital | AC102: Facteur d'augmentation de l'impôt min. sur capital | AF102: =IF(F19=0,1,F19/365) -> 1
T103: 5.a Recher des minima | X103: =IF(X100=0,0,IF(X100=1,U75,IF(X100=2,IF(AC94<850000,"Min",IF(X100=2,IF(AC94>=850000,AC76,0)))))) -> 0.0016 | Z103: =IF(Z100<>0,IF(Z100=6,AC100,IF(Z100=3,IF(AC94<100000,AE76,IF(Z100=3,IF(AC94>=100000,AE75,0)))))) -> FALSE
AI104: =AC95*(1+0.085+(0.05*(1+AN39)))+X109 -> 0
T105: 6. Calcul de l'impôt cantonal sur le capital | X105: =IF(X103=0,0,IF(X103="Min",ROUND((170*AF102),0),ROUND((X103*(AC94+X101))-(X101*AC77),0))) -> 0 | Z105: =IF(Z103=0,0,IF(Z103="Min",170,ROUND((Z103*(AC94+Z101))-(Z101*AC77),0))) -> 0
X106: =X105+Z105 -> 0
T107: 7. Impôt communal sur le capital | X107: =AF39 -> 0
T108: 8. Impôts paroissiaux sur le capital | X108: =AH39 -> 0 | AC108: Barème de l'impôt sur le bénéfice | AI108: Calcul des montants seuils des barèmes avant impôts
T109: 9. Impôts totaux sur le capital | X109: =SUM(X106:X108) -> 0 | AI109: Formule générale : | AK109: Bénéfice seuil = Bén. déterminant * (1 + Taux IFD + Taux bén. dét.*(1 + Fact. communale + Facteur cath. + Facteur réf))+Impôt sur le capital)
AC110: 0 | AD110: 0 | AI110: Pour 25'000 | AJ110: =IF(AJ94=2,AC111*(1+(0.0425*W123)+(0.05*W123*(1+AN39)))+X109,AC111*(1+0.085*W123+(0.05*W123*(1+AN39)))+X109) -> 28375 | AK110: Seul du minimum APM de 5000 : | AM110: =IF(AJ94=2,AC115*(1+(0.0425*W123)+(0.05*W123*(1+AN39)))+X109,AC115*(1+0.085*W123+(0.05*W123*(1+AN39)))+X109) -> 5675
X111: PM | Z111: APM | AC111: 25000 | AD111: 0.042 | AI111: Pour 50'000 | AJ111: =IF(AJ94=2,AC112*(1+0.085*W123+(0.1*W123*(1+AN39)))+X109,AC112*(1+0.085*W123+(0.1*W123*(1+AN39)))+X109) -> 59250
T112: 1. Détermination du barème pour l'impôt sur le bénéfice | X112: =IF(AJ94>1,0,IF(AJ94=1,IF(AJ95=1,1,IF(AJ94=1,IF(AJ95=2,2,IF(AJ94=1,IF(AJ95=3,2,0))))))) -> 1 | Z112: =IF(AJ94=1,0,IF(AJ94=2,IF(AJ95=1,3,IF(AJ94=2,IF(AJ95=2,6,IF(AJ94=2,IF(AJ95=3,6,0))))))) -> 0 | AC112: 50000 | AD112: 0.085
T113: 1.a Détermination des minima | AC113: 25000 - 50000 | AD113: 0.128 | AE113: =1/(1+AD113)/10 -> 0.08865248227
T114: 2. Taux applicable après impôts | AI114: Détermination du taux cantonal global : | AK114: =IF(AE98<AJ110,AD111,IF(AE98>AJ111,AD112,((((AE98-AJ110)/(1+AD113)*AD113)+1250)))) -> 0.042 | AL114: =IF(AE98<AJ110,AD111,IF(AE98>AJ111,AD112,MIN(0.1,AF130))) -> 0.042
T115: 3. Taux cantonal effectif | X115: =AL114 -> 0.042 | Z115: =AL114 -> 0.042 | AC115: 5000
AK116: =(((AC95-AJ110)/(1+0.085+0.15*(AN39))*AD113)+1250) -> -2097.465438
T117: 4. Bénéfice imposable après impôts | X117: =IF(AJ94=2,0,IF(AJ95=2,0,IF(AE95<>AC95,AL139,IF(AC95<>AC97,AJ146,IF(AJ94=1,AJ124,0))))) -> 0 | Z117: =IF(AJ94=1,0,IF(AD98<6300,0,IF(AJ94=2,IF(AJ95=2,0,IF(AJ94=2,IF(AE95<>AC95,AL139,IF(AC95<>AC97,AJ146,IF(AJ124<=AF84,0,AJ124)))))))) -> 0
T118: 4. a) Impôt sur le bénéfice | X118: =X115*X117 -> 0 | Z118: =Z117*Z115 -> 0
T120: 5. Calcul du bénéfice extraordinaire | Z120: =AC96*AF120 -> 0 | AC120: Bénéfice extraordinaire | AE120: =AF83 -> 0.01 | AF120: =IF(AC96=0,0,(AC96*AE120/((AC96+AC96*AE120)))) -> 0 | AI120: Calcul du bénéfice déterminant après impôt dans les cas ordinaires
AI121: Formule générale : | AK121: Bén. dét = | AL121: Bénéfice - impôt sur le capital
T122: 6. Prise en compte des réductions | W122: =F18 -> 0 | X122: =IF(AJ94=2,0,X118*-W122) -> 0 | Z122: =IF(AJ94=1,0,Z118*-W122) -> 0 | AL122: (1+ Taux IFD + Taux Bén. dét(1+Fact. com. + Fact. cath. + Fact. réf)
W123: =1-W122 -> 1
T124: 7. Impôt cantonal total sur le bénéfice | X124: =MAX(0,SUM(X118:X123))+Z124 -> 0 | Z124: =MAX(0,SUM(Z118:Z123)) -> 0 | AJ124: =IF(AJ94=2,(AC95-X109)/((1+0.0425*W123)+((AL114*W123*(1+AN39)))),(AC95-X109)/((1+0.085*W123)+((AL114*W123*(1+AN39))))) -> 0 | AK124: =IF(AL114=0.05,AJ124*AL114,IF(AL114=0.1,AJ124*AL114,1250+((AJ124-AC111)*AD113))) -> -1950 | AL124: =AJ124*AL114 -> 0
X125: =ROUND(X124,1) -> 0 | AA125: =AC95 -> 0 | AK125: =AK124*(AK39+AL39+AM39) -> 0 | AL125: =AL124*(AK39+AL39+AM39) -> 0
T126: 7.a Impôts com. et par. | X126: =AI39+AJ39 -> 0 | Y126: =X125+X126+X109 -> 0 | AA126: =X109 -> 0 | AB126: =AA126 -> 0 | AK126: =AJ124*0.085 -> 0 | AL126: =AJ124*0.085 -> 0 | AN126: =AC95-AL124-AL125-AL126-X109 -> 0
AA127: =AA125-AA126 -> 0 | AB127: 1050 | AK127: =SUM(AK124:AK126) -> -1950
T128: 8. Taux de l'impôt fédéral direct sur le bénéfice | X128: =IF(Z128=1,0,IF(Y128=0.0425,Y129,((AC97-Y126)*W73)/((AC97-Y126)+((AC97-Y126)*W73)))) ->  | Y128: =IF(AJ94=2,AJ73,0) -> 0 | Z128: =IF(Z132=0,0,IF(Z132<12660,1,0)) -> 0 | AA128: =AA125-AJ110 -> -28375 | AK128: =X109 -> 0
Y129: =((AC97-Y126)*Y128)/((AC97-Y126)+((AC97-Y126)*Y128)) ->  | AA129: =AA128/(1+0.085+(0.05*(1+AN39))) -> -25000 | AB129: =AA129*AD113 -> -3200 | AC129: =(AA136-25000)*AD113 -> -2946.359447 | AD129: =(AC136-25000)*AD113 -> -2976.282019 | AE129: =(AD136-25000)*AD113 -> -2972.751983 | AF129: =IF(AA125<AJ110,0.05,IF(AA125>AJ111,0.1,AB127+AE129+(AE139/2))) -> 0.05 | AK129: =AJ124+AK127+AK128 -> -1950
T130: 9. Impôt fédéral direct sur le bénéfice | X130: =MAX(0,(AC97-Y126)*X128) ->  | AB130: =(AB127+AB129)*AN39 -> 0 | AC130: =(AB127+AC129)*AN39 -> 0 | AD130: =(AB127+AD129)*AN39 -> 0 | AE130: =(AB127+AE129)*AN39 -> 0 | AF130: =AF129/AD136 -> 2.816306203e-05
AB131: =SUM(AB126:AB130) -> -2150 | AC131: =AB126+AB127+AC129+AC130 -> -1896.359447 | AD131: =AB126+AB127+AD129+AD130 -> -1926.282019 | AE131: =AB126+AB127+AE129+AE130 -> -1922.751983
T132: 10. Réduction | X132: =X130*-W122 ->  | Z132: =IF(G7=1,0,G7*AC97) -> 0 | AA132: =AA125-AB131 -> 2150 | AC132: =AA125-AC131 -> 1896.359447 | AD132: =AA125-AD131 -> 1926.282019 | AE132: =AA125-AE131 -> 1922.751983 | AJ132: Calcul du bénéfice déterminant lorsque le bénéfice cantonal est différent du bénéfice IFD
AA133: =IF(AJ94=2,((AA132)*AJ73)/((AA132)+((AA132)*AJ73)),((AA132)*W73)/((AA132)+((AA132)*W73))) -> 0.07834101382 | AB133: =AA132*AA133 -> 168.4331797 | AC133: =IF(AJ94=2,((AA132)*AJ73)/((AA132)+((AA132)*AJ73)),((AC132)*W73)/((AC132)+((AC132)*W73))) -> 0.07834101382
X134: =SUM(X130:X132) ->  | AC134: =AC132*AC133 -> 148.5627217 | AD134: =AD132*AC133 -> 150.9068863 | AE134: =AC133*AE132 -> 150.6303397 | AJ134: Bénéf. imposable canton | AL134: =(AC96*AF120*100)+(AD98-X109)/((1+((AL114*W123*(1+AN39))))) -> 0
X135: =ROUND(X134,1) ->  | AB135: =SUM(AB131:AB133) -> -1981.56682 | AC135: =AC131+AC134 -> -1747.796725 | AD135: =AD131+AD134 -> -1775.375133 | AE135: =AE131+AE134 -> -1772.121643
AA136: =AA125-AB135 -> 1981.56682 | AC136: =AA125-AC135 -> 1747.796725 | AD136: =AA125-AD135 -> 1775.375133 | AE136: =AA125-AE135 -> 1772.121643
AI137: IFD | AJ137: =(AC97-(AD98-AL134))/((1+0.085*W123)) -> 0 | AK137: =AC95-AJ137 -> 0 | AL137: =AC133*AL138 -> 0
AE138: =AE136-AD136 -> -3.25348955 | AL138: =AF95*(AJ137-AC96) -> 0
AE139: =AE138*AD113 -> -0.4164466624 | AI139: Part cantonale à prendre en compte | AL139: =IF(AD98>AC97,AD98-AK137,AL138) -> 0
AI142: Calcul du bénéfice déterminant après impôt dans les cas ordinaires
AI143: Formule générale : | AK143: Bén. dét = | AL143: Bénéfice - impôt sur le capital
AL144: (1+ Taux IFD + Taux Bén. dét(1+Fact. com. + Fact. cath. + Fact. réf)
AJ146: =IF(AJ94=2,(AC97-X109)/((1+0.0425*W123)+((AL114*W123*(1+AN39)))),(AC97-X109)/((1+0.085*W123)+((AL114*W123*(1+AN39))))) -> 0 | AK146: =IF(AM136=0.05,AJ146*AM136,IF(AM136=0.1,AJ146*AM136,1250+((AJ146-AC133)*AD135))) -> 1389.084688 | AL146: =AJ146*AM136 -> 0
AK147: =AK146*(AK61+AL61+AM61) -> 0 | AL147: =AL146*(AK61+AL61+AM61) -> 0
AK148: =AJ146*0.085 -> 0 | AL148: =AJ146*0.085 -> 0 | AN148: =AC117-AL146-AL147-AL148-X131 -> 0
AK149: =SUM(AK146:AK148) -> 1389.084688
AK150: =X131 -> 0
AK151: =AJ146+AK149+AK150 -> 1389.084688

Sheet Part des paroisses
A1: 1
A2: 2 | B2: 301 | C2: Alterswil | D2: 81.348 | E2: 18.652
A3: 3 | B3: 201 | C3: Arconciel | D3: 91.993 | E3: 8.007
A4: 4 | B4: 801 | C4: Attalens | D4: 76.13 | E4: 23.87
A5: 5 | B5: 601 | C5: Auboranges | D5: 80.741 | E5: 19.259
A6: 6 | B6: 202 | C6: Autafond | D6: 84.81 | E6: 15.19
A7: 7 | B7: 203 | C7: Autigny | D7: 93.091 | E7: 6.909
A8: 8 | B8: 204 | C8: Avry | D8: 87.522 | E8: 12.478
A9: 9 | B9: 403 | C9: Barberêche | D9: 80 | E9: 20
A10: 10 | B10: 442 | C10: Bas-Intyamon | D10: 95.238 | E10: 4.762
A11: 11 | B11: 540 | C11: Bas-Vully | D11: 37.186 | E11: 62.814
A12: 12 | B12: 205 | C12: Belfaux | D12: 91.328 | E12: 8.672
A13: 13 | B13: 603 | C13: Billens-Hennens | D13: 92.11 | E13: 7.89
A14: 14 | B14: 302 | C14: Bösingen | D14: 61.361 | E14: 38.639
A15: 15 | B15: 803 | C15: Bossonnens | D15: 78.271 | E15: 21.729
A16: 16 | B16: 403 | C16: Botterens | D16: 91.379 | E16: 8.621
A17: 17 | B17: 404 | C17: Broc | D17: 95.08 | E17: 4.92
A18: 18 | B18: 303 | C18: Brünisried | D18: 82.409 | E18: 17.591
A19: 19 | B19: 504 | C19: Büchslen | D19: 10.317 | E19: 89.683
A20: 20 | B20: 405 | C20: Bulle | D20: 93.004 | E20: 6.996
A21: 21 | B21: 704 | C21: Bussy | D21: 88.186 | E21: 11.814
A22: 22 | B22: 406 | C22: Cerniat | D22: 96.203 | E22: 3.797
A23: 23 | B23: 705 | C23: Châbles | D23: 76.601 | E23: 23.399
A24: 24 | B24: 606 | C24: Chapelle | D24: 73.62 | E24: 26.38
A25: 25 | B25: 407 | C25: Charmey | D25: 93.732 | E25: 6.268
A26: 26 | B26: 805 | C26: Châtel-St-Denis | D26: 85.964 | E26: 14.036
A27: 27 | B27: 408 | C27: Châtel-sur-Montsalvens | D27: 87.097 | E27: 12.903
A28: 28 | B28: 708 | C28: Châtillon | D28: 76.522 | E28: 23.478
A29: 29 | B29: 608 | C29: Châtonnaye | D29: 82.664 | E29: 17.336
A30: 30 | B30: 709 | C30: Cheiry | D30: 78.547 | E30: 21.453
A31: 31 | B31: 207 | C31: Chénens | D31: 95.21 | E31: 4.79
A32: 32 | B32: 209 | C32: Chésopelloz | D32: 87.368 | E32: 12.632
A33: 33 | B33: 710 | C33: Cheyres | D33: 69.945 | E33: 30.055
A34: 34 | B34: 409 | C34: Corbières | D34: 94.822 | E34: 5.178
A35: 35 | B35: 213 | C35: Corminboeuf | D35: 90.46 | E35: 9.54
A36: 36 | B36: 214 | C36: Corpataux-Magnedens | D36: 93.623 | E36: 6.377
A37: 37 | B37: 215 | C37: Corserey | D37: 94.583 | E37: 5.417
A38: 38 | B38: 216 | C38: Cottens | D38: 94.713 | E38: 5.287
A39: 39 | B39: 510 | C39: Courgevaux | D39: 42.302 | E39: 57.698
A40: 40 | B40: 511 | C40: Courlevon | D40: 24.434 | E40: 75.566
A41: 41 | B41: 514 | C41: Courtepin | D41: 81.442 | E41: 18.558
A42: 42 | B42: 517 | C42: Cressier | D42: 69.951 | E42: 30.049
A43: 43 | B43: 410 | C43: Crésuz | D43: 89.372 | E43: 10.628
A44: 44 | B44: 711 | C44: Cugy | D44: 86.566 | E44: 13.434
A45: 45 | B45: 751 | C45: Delley-Portalban | D45: 79.775 | E45: 20.225
A46: 46 | B46: 713 | C46: Domdidier | D46: 84.163 | E46: 15.837
A47: 47 | B47: 714 | C47: Dompierre | D47: 89.02 | E47: 10.98
A48: 48 | B48: 304 | C48: Düdingen | D48: 82.611 | E48: 17.389
A49: 49 | B49: 411 | C49: Echarlens | D49: 93.817 | E49: 6.183
A50: 50 | B50: 612 | C50: Ecublens | D50: 78.166 | E50: 21.834
A51: 51 | B51: 219 | C51: Ependes | D51: 93.635 | E51: 6.365
A52: 52 | B52: 715 | C52: Estavayer-le-Lac | D52: 84.259 | E52: 15.741
A53: 53 | B53: 222 | C53: Farvagny | D53: 93.429 | E53: 6.571
A54: 54 | B54: 224 | C54: Ferpicloz | D54: 93.452 | E54: 6.548
A55: 55 | B55: 716 | C55: Fétigny | D55: 83.516 | E55: 16.484
A56: 56 | B56: 717 | C56: Font | D56: 84.979 | E56: 15.021
A57: 57 | B57: 518 | C57: Fräschels | D57: 10.649 | E57: 89.351
A58: 58 | B58: 101 | C58: Fribourg / Freiburg | D58: 89.908 | E58: 10.092
A59: 59 | B59: 519 | C59: Galmiz | D59: 20.455 | E59: 79.545
A60: 60 | B60: 520 | C60: Gempenach | D60: 10.196 | E60: 89.804
A61: 61 | B61: 305 | C61: Giffers | D61: 90.413 | E61: 9.587
A62: 62 | B62: 226 | C62: Givisiez | D62: 90.313 | E62: 9.687
A63: 63 | B63: 722 | C63: Gletterens | D63: 66.499 | E63: 33.501
A64: 64 | B64: 414 | C64: Grandvillard | D64: 96.649 | E64: 3.351
A65: 65 | B65: 808 | C65: Granges | D65: 77.024 | E65: 22.976
A66: 66 | B66: 227 | C66: Granges-Paccot | D66: 90.364 | E66: 9.636
A67: 67 | B67: 619 | C67: Grangettes | D67: 92.667 | E67: 7.333
A68: 68 | B68: 521 | C68: Greng | D68: 31.034 | E68: 68.966
A69: 69 | B69: 229 | C69: Grolley | D69: 92.192 | E69: 7.808
A70: 70 | B70: 415 | C70: Gruyères | D70: 93.2 | E70: 6.8
A71: 71 | B71: 522 | C71: Gurmels | D71: 66.009 | E71: 33.991
A72: 72 | B72: 262 | C72: Hauterive | D72: 92.052 | E72: 7.948
A73: 73 | B73: 417 | C73: Hauteville | D73: 89.976 | E73: 10.024
A74: 74 | B74: 401 | C74: Haut-Intyamon | D74: 92.62 | E74: 7.38
A75: 75 | B75: 541 | C75: Haut-Vully | D75: 27.045 | E75: 72.955
A76: 76 | B76: 306 | C76: Heitenried | D76: 74.254 | E76: 25.746
A77: 77 | B77: 418 | C77: Jaun | D77: 95.137 | E77: 4.863
A78: 78 | B78: 524 | C78: Jeuss | D78: 18.072 | E78: 81.928
A79: 79 | B79: 525 | C79: Kerzers | D79: 19.501 | E79: 80.499
A80: 80 | B80: 526 | C80: Kleinbösingen | D80: 59.217 | E80: 40.783
A81: 81 | B81: 263 | C81: La Brillaz | D81: 93.686 | E81: 6.314
A82: 82 | B82: 656 | C82: La Folliaz | D82: 93.888 | E82: 6.112
A83: 83 | B83: 429 | C83: La Roche | D83: 95.637 | E83: 4.363
A84: 84 | B84: 264 | C84: La Sonnaz | D84: 91.292 | E84: 8.708
A85: 85 | B85: 818 | C85: La Verrerie | D85: 93.596 | E85: 6.404
A86: 86 | B86: 607 | C86: Le Châtelard | D86: 98.089 | E86: 1.911
A87: 87 | B87: 817 | C87: Le Flon | D87: 89.826 | E87: 10.174
A88: 88 | B88: 252 | C88: Le Glèbe | D88: 97.304 | E88: 2.696
A89: 89 | B89: 249 | C89: Le Mouret | D89: 94.638 | E89: 5.362
A90: 90 | B90: 425 | C90: Le Pâquier | D90: 91.063 | E90: 8.937
A91: 91 | B91: 724 | C91: Léchelles | D91: 87.558 | E91: 12.442
A92: 92 | B92: 750 | C92: Les Montets | D92: 85.905 | E92: 14.095
A93: 93 | B93: 725 | C93: Lully | D93: 80.071 | E93: 19.929
A94: 94 | B94: 530 | C94: Lurtigen | D94: 7.143 | E94: 92.857
A95: 95 | B95: 235 | C95: Marly | D95: 89.13 | E95: 10.87
A96: 96 | B96: 420 | C96: Marsens | D96: 93.671 | E96: 6.329
A97: 97 | B97: 626 | C97: Massonnens | D97: 98.338 | E97: 1.662
A98: 98 | B98: 237 | C98: Matran | D98: 92.377 | E98: 7.623
A99: 99 | B99: 727 | C99: Ménières | D99: 87.037 | E99: 12.963
A100: 100 | B100: 531 | C100: Meyriez | D100: 30.342 | E100: 69.658
A101: 101 | B101: 627 | C101: Mézières | D101: 94.887 | E101: 5.113
A102: 102 | B102: 532 | C102: Misery-Courtion | D102: 88.951 | E102: 11.049
A103: 103 | B103: 729 | C103: Montagny | D103: 88.853 | E103: 11.147
A104: 104 | B104: 629 | C104: Montet (Gl.) | D104: 72.258 | E104: 27.742
A105: 105 | B105: 733 | C105: Morens | D105: 79.63 | E105: 20.37
A106: 106 | B106: 423 | C106: Morlon | D106: 93.677 | E106: 6.323
A107: 107 | B107: 534 | C107: Muntelier | D107: 29.593 | E107: 70.407
A108: 108 | B108: 734 | C108: Murist | D108: 76.762 | E108: 23.238
A109: 109 | B109: 535 | C109: Murten / Morat | D109: 38.63 | E109: 61.37
A110: 110 | B110: 240 | C110: Neyruz | D110: 91.516 | E110: 8.484
A111: 111 | B111: 242 | C111: Noréaz | D111: 90.807 | E111: 9.193
A112: 112 | B112: 735 | C112: Nuvilly | D112: 86.923 | E112: 13.077
A113: 113 | B113: 308 | C113: Oberschrot | D113: 93.182 | E113: 6.818
A114: 114 | B114: 245 | C114: Pierrafortscha | D114: 75.969 | E114: 24.031
A115: 115 | B115: 309 | C115: Plaffeien | D115: 90.147 | E115: 9.853
A116: 116 | B116: 310 | C116: Plasselb | D116: 91.715 | E116: 8.285
A117: 117 | B117: 402 | C117: Pont-en-Ogoz | D117: 91.581 | E117: 8.419
A118: 118 | B118: 246 | C118: Ponthaux | D118: 90.175 | E118: 9.825
A119: 119 | B119: 427 | C119: Pont-la-Ville | D119: 96.618 | E119: 3.382
A120: 120 | B120: 738 | C120: Prévondavaux | D120: 59.574 | E120: 40.426
A121: 121 | B121: 250 | C121: Prez-vers-Noréaz | D121: 90.45 | E121: 9.55
A122: 122 | B122: 311 | C122: Rechthalten | D122: 85.729 | E122: 14.271
A123: 123 | B123: 813 | C123: Remaufens | D123: 87.579 | E123: 12.421
A124: 124 | B124: 428 | C124: Riaz | D124: 95.048 | E124: 4.952
A125: 125 | B125: 536 | C125: Ried bei Kerzers | D125: 17.021 | E125: 82.979
A126: 126 | B126: 636 | C126: Romont | D126: 91.799 | E126: 8.201
A127: 127 | B127: 251 | C127: Rossens | D127: 94.608 | E127: 5.392
A128: 128 | B128: 637 | C128: Rue | D128: 85.19 | E128: 14.81
A129: 129 | B129: 739 | C129: Rueyres-les-Prés | D129: 87.558 | E129: 12.442
A130: 130 | B130: 740 | C130: Russy | D130: 90.909 | E130: 9.091
A131: 131 | B131: 432 | C131: Sâles (Gr.) | D131: 97.094 | E131: 2.906
A132: 132 | B132: 537 | C132: Salvenach | D132: 15.044 | E132: 84.956
A133: 133 | B133: 315 | C133: Schmitten | D133: 81.318 | E133: 18.682
A134: 134 | B134: 816 | C134: Semsales | D134: 91.081 | E134: 8.919
A135: 135 | B135: 254 | C135: Senèdes | D135: 95.283 | E135: 4.717
A136: 136 | B136: 743 | C136: Sévaz | D136: 84.091 | E136: 15.909
A137: 137 | B137: 639 | C137: Siviriez | D137: 94.192 | E137: 5.808
A138: 138 | B138: 433 | C138: Sorens | D138: 95.618 | E138: 4.382
A139: 139 | B139: 312 | C139: St. Antoni | D139: 81.436 | E139: 18.564
A140: 140 | B140: 313 | C140: St. Silvester | D140: 92.686 | E140: 7.314
A141: 141 | B141: 314 | C141: St. Ursen | D141: 82.332 | E141: 17.668
A142: 142 | B142: 741 | C142: St-Aubin | D142: 81.782 | E142: 18.218
A143: 143 | B143: 815 | C143: St-Martin | D143: 83.459 | E143: 16.541
A144: 144 | B144: 744 | C144: Surpierre | D144: 83.399 | E144: 16.601
A145: 145 | B145: 316 | C145: Tafers | D145: 88.088 | E145: 11.912
A146: 146 | B146: 317 | C146: Tentlingen | D146: 90.613 | E146: 9.387
A147: 147 | B147: 641 | C147: Torny | D147: 91.126 | E147: 8.874
A148: 148 | B148: 255 | C148: Treyvaux | D148: 96.788 | E148: 3.212
A149: 149 | B149: 318 | C149: Ueberstorf | D149: 66.649 | E149: 33.351
A150: 150 | B150: 538 | C150: Ulmiz | D150: 12.42 | E150: 87.58
A151: 151 | B151: 642 | C151: Ursy | D151: 87.688 | E151: 12.312
A152: 152 | B152: 745 | C152: Vallon | D152: 76.293 | E152: 23.707
A153: 153 | B153: 435 | C153: Vaulruz | D153: 95.828 | E153: 4.172
A154: 154 | B154: 752 | C154: Verney | D154: 85.513 | E154: 14.487
A155: 155 | B155: 539 | C155: Villarepos | D155: 72 | E155: 28
A156: 156 | B156: 259 | C156: Villarsel-sur-Marly | D156: 92.857 | E156: 7.143
A157: 157 | B157: 257 | C157: Villars-sur-Glâne | D157: 90.122 | E157: 9.878
A158: 158 | B158: 439 | C158: Villarvolard | D158: 95.082 | E158: 4.918
A159: 159 | B159: 651 | C159: Villaz-St-Pierre | D159: 93.284 | E159: 6.716
A160: 160 | B160: 747 | C160: Villeneuve | D160: 78.899 | E160: 21.101
A161: 161 | B161: 654 | C161: Villorsonnens | D161: 90.918 | E161: 9.082
A162: 162 | B162: 440 | C162: Vuadens | D162: 94.571 | E162: 5.429
A163: 163 | B163: 652 | C163: Vuarmarens | D163: 88.684 | E163: 11.316
A164: 164 | B164: 749 | C164: Vuissens | D164: 75.694 | E164: 24.306
A165: 165 | B165: 653 | C165: Vuisternens-devant-Romont | D165: 94.521 | E165: 5.479
A166: 166 | B166: 260 | C166: Vuisternens-en-Ogoz | D166: 94.337 | E166: 5.663
A167: 167 | B167: 543 | C167: Wallenried | D167: 67.029 | E167: 32.971
A168: 168 | B168: 319 | C168: Wünnewil-Flamatt | D168: 64.057 | E168: 35.943
A169: 169 | B169: 320 | C169: Zumholz | D169: 83.693 | E169: 16.307
A178: Mise à jour : 13/05/09 - go

Sheet Taux 2015-324- communaux
C1: Coefficients des impôts communaux, état au 1er janvier 2016
C2: Gemeindesteuerfüsse, Stand am 1. Januar 2016
C3: T18-23 | D3: Personnes morales
D4: Impôt sur le bénéfice
D5: et le capital, en % de | E5: cath. | G5: réf.
D6: l'impôt cantonal de base | E6: Personnes morales | G6: Personnes morales
E7: Juristische Personen | G7: Juristische Personen
D8: Juristische Personen | E8: Impôt sur le | F8: Impôt sur le | G8: Impôt sur le | H8: Impôt sur le
D9: Steuer auf dem Gewinn | E9: bénéfice | F9: capital | G9: bénéfice | H9: capital
D10: und Kapital, in % der | E10: Steuer auf dem | F10: Steuer auf dem | G10: Steuer auf dem | H10: Steuer auf dem
D11: einfachen Kantonssteuer | E11: Gewinn | F11: Kapital | G11: Gewinn | H11: Kapital
B13: No de la commune
A14: 1
A15: 2 | B15: 301 | C15: Alterswil | D15: 79 | E15: 10 | F15: 10 | G15: 10 | H15: 10
A16: 3 | B16: 201 | C16: Arconciel | D16: 85 | E16: 9 | F16: 9 | G16: 10 | H16: 10
A17: 4 | B17: 801 | C17: Attalens | D17: 78.5 | E17: 8 | F17: 8 | G17: 10 | H17: 10
A18: 5 | B18: 601 | C18: Auboranges | D18: 50 | E18: 10 | F18: 10 | G18: 10 | H18: 10
A19: 6 | B19: 203 | C19: Autigny | D19: 90 | E19: 10 | F19: 10 | G19: 10 | H19: 10
A20: 7 | B20: 204 | C20: Avry | D20: 72.1 | E20: 8 | F20: 10 | G20: 10 | H20: 10
A21: 8 | B21: 503 | C21: Barberêche | D21: 90 | E21: 10 | F21: 10 | G21: 10 | H21: 10
A22: 9 | B22: 442 | C22: Bas-Intymon | D22: 83.2 | E22: 10 | F22: 10 | G22: 9 | H22: 10
A23: 10 | B23: 205 | C23: Belfaux | D23: 81 | E23: 8 | F23: 10 | G23: 10 | H23: 10
A24: 11 | B24: 753 | C24: Belmont-Broye | D24: 72 | E24: 6 | F24: 6 | G24: 8 | H24: 10
A25: 12 | B25: 603 | C25: Billens-Hennens | D25: 100 | E25: 10 | F25: 10 | G25: 10 | H25: 10
A26: 13 | B26: 302 | C26: Bösingen | D26: 79 | E26: 10 | F26: 10 | G26: 10 | H26: 10
A27: 14 | B27: 803 | C27: Bossonnens | D27: 93 | E27: 8 | F27: 8 | G27: 10 | H27: 10
A28: 15 | B28: 403 | C28: Botterens | D28: 85 | E28: 10 | F28: 10 | G28: 9 | H28: 10
A29: 16 | B29: 404 | C29: Broc | D29: 92 | E29: 10 | F29: 10 | G29: 9 | H29: 10
A30: 17 | B30: 303 | C30: Brünisried | D30: 95 | E30: 10 | F30: 10 | G30: 10 | H30: 10
A31: 18 | B31: 405 | C31: Bulle | D31: 74.3 | E31: 4 | F31: 10 | G31: 9 | H31: 10
A32: 19 | B32: 704 | C32: Bussy | D32: 78.4 | E32: 10 | F32: 10 | G32: 8 | H32: 10
A33: 20 | B33: 705 | C33: Châbles | D33: 87.1 | E33: 10 | F33: 10 | G33: 8 | H33: 10
A34: 21 | B34: 606 | C34: Chapelle (Gl.) | D34: 85 | E34: 10 | F34: 10 | G34: 10 | H34: 10
A35: 22 | B35: 805 | C35: Châtel-St-Denis | D35: 83.6 | E35: 6 | F35: 10 | G35: 10 | H35: 10
A36: 23 | B36: 408 | C36: Châtel-sur-Montsalvens | D36: 79.5 | E36: 10 | F36: 10 | G36: 9 | H36: 10
A37: 24 | B37: 708 | C37: Châtillon | D37: 87 | E37: 8 | F37: 8 | G37: 8 | H37: 10
A38: 25 | B38: 608 | C38: Châtonnaye | D38: 85 | E38: 10 | F38: 10 | G38: 10 | H38: 10
A39: 26 | B39: 709 | C39: Cheiry | D39: 80 | E39: 10 | F39: 10 | G39: 8 | H39: 10
A40: 27 | B40: 207 | C40: Chénens | D40: 77.1 | E40: 10 | F40: 10 | G40: 10 | H40: 10
A41: 28 | B41: 209 | C41: Chésopelloz | D41: 76 | E41: 8 | F41: 10 | G41: 10 | H41: 10
A42: 29 | B42: 710 | C42: Cheyres | D42: 65 | E42: 10 | F42: 10 | G42: 8 | H42: 10
A43: 30 | B43: 409 | C43: Corbières | D43: 77.2 | E43: 10 | F43: 10 | G43: 9 | H43: 10
A44: 31 | B44: 213 | C44: Corminboeuf | D44: 75 | E44: 8 | F44: 10 | G44: 10 | H44: 10
A45: 32 | B45: 215 | C45: Corserey | D45: 85 | E45: 10 | F45: 10 | G45: 10 | H45: 10
A46: 33 | B46: 216 | C46: Cottens | D46: 93 | E46: 10 | F46: 10 | G46: 10 | H46: 10
A47: 34 | B47: 510 | C47: Courgevaux | D47: 76 | E47: 8 | F47: 8 | G47: 10 | H47: 10
A48: 35 | B48: 514 | C48: Courtepin | D48: 85 | E48: 10 | F48: 10 | G48: 10 | H48: 10
A49: 36 | B49: 517 | C49: Cressier | D49: 64.9 | E49: 10 | F49: 10 | G49: 10 | H49: 10
A50: 37 | B50: 410 | C50: Crésuz | D50: 70 | E50: 10 | F50: 10 | G50: 9 | H50: 10
A51: 38 | B51: 711 | C51: Cugy | D51: 80 | E51: 9 | F51: 9 | G51: 8 | H51: 10
A52: 39 | B52: 751 | C52: Delley-Portalban | D52: 49.9 | E52: 10 | F52: 10 | G52: 8 | H52: 10
A53: 40 | B53: 304 | C53: Düdingen | D53: 82 | E53: 8 | F53: 8 | G53: 10 | H53: 10
A54: 41 | B54: 411 | C54: Echarlens | D54: 70 | E54: 5 | F54: 5 | G54: 9 | H54: 10
A55: 42 | B55: 612 | C55: Ecublens | D55: 88.5 | E55: 10 | F55: 10 | G55: 10 | H55: 10
A56: 43 | B56: 219 | C56: Ependes | D56: 88 | E56: 8 | F56: 8 | G56: 10 | H56: 10
A57: 44 | B57: 715 | C57: Estavayer-le-Lac | D57: 84 | E57: 9 | F57: 10 | G57: 8 | H57: 10
A58: 45 | B58: 224 | C58: Ferpicloz | D58: 50 | E58: 8 | F58: 8 | G58: 10 | H58: 10
A59: 46 | B59: 716 | C59: Fétigny | D59: 85.6 | E59: 10 | F59: 10 | G59: 8 | H59: 10
A60: 47 | B60: 518 | C60: Fräschels | D60: 75 | E60: 8 | F60: 8 | G60: 7 | H60: 7
A61: 48 | B61: 101 | C61: Fribourg / Freiburg | D61: 81.6 | E61: 10 | F61: 10 | G61: 10 | H61: 10
A62: 49 | B62: 519 | C62: Galmiz | D62: 72 | E62: 8 | F62: 8 | G62: 9 | H62: 9
A63: 50 | B63: 520 | C63: Gempenach | D63: 67 | E63: 8 | F63: 8 | G63: 7.4 | H63: 7.4
A64: 51 | B64: 265 | C64: Gibloux | D64: 85 | E64: 10 | F64: 10 | G64: 10 | H64: 10
A65: 52 | B65: 305 | C65: Giffers | D65: 85.9 | E65: 9 | F65: 9 | G65: 10 | H65: 10
A66: 53 | B66: 226 | C66: Givisiez | D66: 70 | E66: 6 | F66: 10 | G66: 10 | H66: 10
A67: 54 | B67: 722 | C67: Gletterens | D67: 58.9 | E67: 10 | F67: 10 | G67: 8 | H67: 10
A68: 55 | B68: 414 | C68: Grandvillard | D68: 80 | E68: 10 | F68: 10 | G68: 9 | H68: 10
A69: 56 | B69: 808 | C69: Granges | D69: 81 | E69: 8 | F69: 8 | G69: 10 | H69: 10
A70: 57 | B70: 227 | C70: Granges-Paccot | D70: 67.8 | E70: 6 | F70: 10 | G70: 10 | H70: 10
A71: 58 | B71: 619 | C71: Grangettes | D71: 77 | E71: 10 | F71: 10 | G71: 10 | H71: 10
A72: 59 | B72: 521 | C72: Greng | D72: 32 | E72: 8 | F72: 8 | G72: 10 | H72: 10
A73: 60 | B73: 229 | C73: Grolley | D73: 86.8 | E73: 10 | F73: 10 | G73: 10 | H73: 10
A74: 61 | B74: 415 | C74: Gruyères | D74: 75.6 | E74: 8 | F74: 8 | G74: 9 | H74: 10
A75: 62 | B75: 522 | C75: Gurmels | D75: 80 | E75: 10 | F75: 10 | G75: 10 | H75: 10
A76: 63 | B76: 262 | C76: Hauterive | D76: 74 | E76: 8 | F76: 8 | G76: 10 | H76: 10
A77: 64 | B77: 417 | C77: Hauteville | D77: 77.7 | E77: 10 | F77: 10 | G77: 9 | H77: 10
A78: 65 | B78: 401 | C78: Haut-Intyamon | D78: 97 | E78: 10 | F78: 10 | G78: 9 | H78: 10
A79: 66 | B79: 306 | C79: Heitenried | D79: 81 | E79: 10 | F79: 10 | G79: 10 | H79: 10
A80: 67 | B80: 418 | C80: Jaun | D80: 100 | E80: 5 | F80: 10 | G80: 9 | H80: 10
A81: 68 | B81: 525 | C81: Kerzers | D81: 85 | E81: 8 | F81: 8 | G81: 7 | H81: 7
A82: 69 | B82: 526 | C82: Kleinbösingen | D82: 60 | E82: 10 | F82: 10 | G82: 10 | H82: 10
A83: 70 | B83: 263 | C83: La Brillaz | D83: 91.4 | E83: 10 | F83: 10 | G83: 10 | H83: 10
A84: 71 | B84: 656 | C84: La Folliaz | D84: 87.1 | E84: 10 | F84: 10 | G84: 10 | H84: 10
A85: 72 | B85: 429 | C85: La Roche | D85: 100 | E85: 10 | F85: 10 | G85: 9 | H85: 10
A86: 73 | B86: 264 | C86: La Sonnaz | D86: 100 | E86: 8 | F86: 10 | G86: 10 | H86: 10
A87: 74 | B87: 818 | C87: La Verrerie | D87: 80 | E87: 10 | F87: 10 | G87: 10 | H87: 10
A88: 75 | B88: 607 | C88: Le Châtelard | D88: 63 | E88: 10 | F88: 10 | G88: 10 | H88: 10
A89: 76 | B89: 817 | C89: Le Flon | D89: 93.8 | E89: 10 | F89: 10 | G89: 10 | H89: 10
A90: 77 | B90: 249 | C90: Le Mouret | D90: 80 | E90: 10 | F90: 10 | G90: 10 | H90: 10
A91: 78 | B91: 425 | C91: Le Pâquier | D91: 79.7 | E91: 8 | F91: 8 | G91: 9 | H91: 10
A92: 79 | B92: 750 | C92: Les Montets | D92: 77.4 | E92: 10 | F92: 10 | G92: 8 | H92: 10
A93: 80 | B93: 725 | C93: Lully | D93: 80 | E93: 8 | F93: 8 | G93: 8 | H93: 10
A94: 81 | B94: 235 | C94: Marly | D94: 80 | E94: 10 | F94: 10 | G94: 10 | H94: 10
A95: 82 | B95: 420 | C95: Marsens | D95: 75 | E95: 4 | F95: 4 | G95: 9 | H95: 10
A96: 83 | B96: 626 | C96: Massonnens | D96: 86.9 | E96: 10 | F96: 10 | G96: 10 | H96: 10
A97: 84 | B97: 237 | C97: Matran | D97: 80 | E97: 8 | F97: 10 | G97: 10 | H97: 10
A98: 85 | B98: 727 | C98: Ménières | D98: 88.1 | E98: 10 | F98: 10 | G98: 8 | H98: 10
A99: 86 | B99: 531 | C99: Meyriez | D99: 52.3 | E99: 8 | F99: 8 | G99: 10 | H99: 10
A100: 87 | B100: 627 | C100: Mézières | D100: 83 | E100: 10 | F100: 10 | G100: 10 | H100: 10
A101: 88 | B101: 532 | C101: Misery-Courtion | D101: 92.6 | E101: 10 | F101: 10 | G101: 10 | H101: 10
A102: 89 | B102: 729 | C102: Montagny | D102: 79.2 | E102: 7 | F102: 7 | G102: 8 | H102: 10
A103: 90 | B103: 629 | C103: Montet (Gl.) | D103: 70 | E103: 10 | F103: 10 | G103: 10 | H103: 10
A104: 91 | B104: 544 | C104: Mont-Vully | D104: 60 | E104: 8 | F104: 8 | G104: 10 | H104: 10
A105: 92 | B105: 733 | C105: Morens | D105: 88 | E105: 10 | F105: 10 | G105: 8 | H105: 10
A106: 93 | B106: 423 | C106: Morlon | D106: 88.1 | E106: 10 | F106: 10 | G106: 9 | H106: 10
A107: 94 | B107: 534 | C107: Muntelier | D107: 58 | E107: 8 | F107: 8 | G107: 9 | H107: 9
A108: 95 | B108: 734 | C108: Murist | D108: 88.2 | E108: 10 | F108: 10 | G108: 8 | H108: 10
A109: 96 | B109: 535 | C109: Murten / Morat | D109: 62 | E109: 8 | F109: 8 | G109: 9 | H109: 9
A110: 97 | B110: 240 | C110: Neyruz | D110: 85 | E110: 8 | F110: 10 | G110: 10 | H110: 10
A111: 98 | B111: 242 | C111: Noréaz | D111: 80 | E111: 10 | F111: 10 | G111: 10 | H111: 10
A112: 99 | B112: 735 | C112: Nuvilly | D112: 87.9 | E112: 10 | F112: 10 | G112: 8 | H112: 10
A113: 100 | B113: 308 | C113: Oberschrot | D113: 93 | E113: 10 | F113: 10 | G113: 10 | H113: 10
A114: 101 | B114: 245 | C114: Pierrafortscha | D114: 75 | E114: 10 | F114: 10 | G114: 10 | H114: 10
A115: 102 | B115: 309 | C115: Plaffeien | D115: 93 | E115: 10 | F115: 10 | G115: 10 | H115: 10
A116: 103 | B116: 310 | C116: Plasselb | D116: 95 | E116: 10 | F116: 10 | G116: 10 | H116: 10
A117: 104 | B117: 402 | C117: Pont-en-Ogoz | D117: 75 | E117: 8 | F117: 8 | G117: 9 | H117: 10
A118: 105 | B118: 246 | C118: Ponthaux | D118: 89 | E118: 10 | F118: 10 | G118: 10 | H118: 10
A119: 106 | B119: 427 | C119: Pont-la-Ville | D119: 80 | E119: 10 | F119: 10 | G119: 9 | H119: 10
A120: 107 | B120: 738 | C120: Prévondavaux | D120: 90.3 | E120: 10 | F120: 10 | G120: 8 | H120: 10
A121: 108 | B121: 250 | C121: Prez-vers-Noréaz | D121: 84 | E121: 10 | F121: 10 | G121: 10 | H121: 10
A122: 109 | B122: 311 | C122: Rechthalten | D122: 90 | E122: 10 | F122: 10 | G122: 10 | H122: 10
A123: 110 | B123: 813 | C123: Remaufens | D123: 88 | E123: 10 | F123: 10 | G123: 10 | H123: 10
A124: 111 | B124: 428 | C124: Riaz | D124: 73 | E124: 7 | F124: 10 | G124: 9 | H124: 10
A125: 112 | B125: 536 | C125: Ried bei Kerzers | D125: 72.5 | E125: 8 | F125: 8 | G125: 9 | H125: 9
A126: 113 | B126: 636 | C126: Romont | D126: 90 | E126: 8 | F126: 10 | G126: 10 | H126: 10
A127: 114 | B127: 637 | C127: Rue | D127: 83 | E127: 10 | F127: 10 | G127: 10 | H127: 10
A128: 115 | B128: 739 | C128: Rueyres-les-Prés | D128: 87.8 | E128: 10 | F128: 10 | G128: 8 | H128: 10
A129: 116 | B129: 432 | C129: Sâles (Gr.) | D129: 80 | E129: 7 | F129: 10 | G129: 9 | H129: 10
A130: 117 | B130: 537 | C130: Salvenach | D130: 72.2 | E130: 8 | F130: 8 | G130: 9 | H130: 9
A131: 118 | B131: 315 | C131: Schmitten | D131: 72 | E131: 8 | F131: 8 | G131: 10 | H131: 10
A132: 119 | B132: 816 | C132: Semsales | D132: 83 | E132: 9.5 | F132: 9.5 | G132: 10 | H132: 10
A133: 120 | B133: 254 | C133: Senèdes | D133: 89.1 | E133: 8 | F133: 8 | G133: 10 | H133: 10
A134: 121 | B134: 743 | C134: Sévaz | D134: 70 | E134: 10 | F134: 10 | G134: 8 | H134: 10
A135: 122 | B135: 639 | C135: Siviriez | D135: 65 | E135: 10 | F135: 10 | G135: 10 | H135: 10
A136: 123 | B136: 433 | C136: Sorens | D136: 83 | E136: 10 | F136: 10 | G136: 9 | H136: 10
A137: 124 | B137: 312 | C137: St. Antoni | D137: 90 | E137: 10 | F137: 10 | G137: 10 | H137: 10
A138: 125 | B138: 313 | C138: St. Silvester | D138: 98 | E138: 10 | F138: 10 | G138: 10 | H138: 10
A139: 126 | B139: 314 | C139: St. Ursen | D139: 80.6 | E139: 10 | F139: 10 | G139: 10 | H139: 10
A140: 127 | B140: 741 | C140: St-Aubin | D140: 80 | E140: 9 | F140: 9 | G140: 8 | H140: 10
A141: 128 | B141: 815 | C141: St-Martin | D141: 90 | E141: 10 | F141: 10 | G141: 10 | H141: 10
A142: 129 | B142: 744 | C142: Surpierre | D142: 89.5 | E142: 10 | F142: 10 | G142: 8 | H142: 10
A143: 130 | B143: 316 | C143: Tafers | D143: 75 | E143: 10 | F143: 10 | G143: 10 | H143: 10
A144: 131 | B144: 317 | C144: Tentlingen | D144: 76.1 | E144: 9 | F144: 9 | G144: 10 | H144: 10
A145: 132 | B145: 655 | C145: Torny | D145: 72.7 | E145: 10 | F145: 10 | G145: 10 | H145: 10
A146: 133 | B146: 255 | C146: Treyvaux | D146: 92.1 | E146: 9 | F146: 9 | G146: 10 | H146: 10
A147: 134 | B147: 318 | C147: Ueberstorf | D147: 89 | E147: 10 | F147: 10 | G147: 10 | H147: 10
A148: 135 | B148: 538 | C148: Ulmiz | D148: 79.5 | E148: 8 | F148: 8 | G148: 7.4 | H148: 7.4
A149: 136 | B149: 642 | C149: Ursy | D149: 77 | E149: 10 | F149: 10 | G149: 10 | H149: 10
A150: 137 | B150: 443 | C150: Val-de-Charmey | D150: 89.8 | E150: 8 | F150: 10 | G150: 9 | H150: 10
A151: 138 | B151: 745 | C151: Vallon | D151: 78 | E151: 10 | F151: 10 | G151: 8 | H151: 10
A152: 139 | B152: 435 | C152: Vaulruz | D152: 79 | E152: 10 | F152: 10 | G152: 9 | H152: 10
A153: 140 | B153: 752 | C153: Vernay | D153: 90 | E153: 10 | F153: 10 | G153: 8 | H153: 10
A154: 141 | B154: 539 | C154: Villarepos | D154: 85 | E154: 10 | F154: 10 | G154: 10 | H154: 10
A155: 142 | B155: 259 | C155: Villarsel-sur-Marly | D155: 100 | E155: 10 | F155: 10 | G155: 10 | H155: 10
A156: 143 | B156: 257 | C156: Villars-sur-Glâne | D156: 63.9 | E156: 5 | F156: 10 | G156: 10 | H156: 10
A157: 144 | B157: 651 | C157: Villaz-St-Pierre | D157: 86.7 | E157: 8 | F157: 10 | G157: 10 | H157: 10
A158: 145 | B158: 747 | C158: Villeneuve | D158: 88.7 | E158: 10 | F158: 10 | G158: 8 | H158: 10
A159: 146 | B159: 654 | C159: Villorsonnens | D159: 76 | E159: 10 | F159: 10 | G159: 10 | H159: 10
A160: 147 | B160: 440 | C160: Vuadens | D160: 87.8 | E160: 8 | F160: 10 | G160: 9 | H160: 10
A161: 148 | B161: 749 | C161: Vuissens | D161: 85 | E161: 10 | F161: 10 | G161: 8 | H161: 10
A162: 149 | B162: 632 | C162: Vuisternens-devant-Romont | D162: 88.4 | E162: 10 | F162: 10 | G162: 10 | H162: 10
A163: 150 | B163: 543 | C163: Wallenried | D163: 100 | E163: 10 | F163: 10 | G163: 10 | H163: 10
A164: 151 | B164: 319 | C164: Wünnewil-Flamatt | D164: 85.7 | E164: 10 | F164: 10 | G164: 10 | H164: 10
A165: 152 | B165: 320 | C165: Zumholz | D165: 90.2 | E165: 10 | F165: 10 | G165: 10 | H165: 10
A168: Mise à jour 25.01.206/am
